[Event "*** Titled Tuesday Blitz"]
[Site "Chess.com"]
[Date "2020.11.24"]
[Round "4"]
[White "2346PL"]
[Black "quesfr"]
[Result "1-0"]
[WhiteElo "2436"]
[BlackElo "2234"]
[TimeControl "180+1"]
[EndTime "10:55:13 PST"]
[Termination "2346PL won on time"]

1. d4 {[%clk 0:03:00.9]} 1... d5 {[%clk 0:02:59.6]} 2. Nc3 {[%clk 0:03:00.9]}
2... e6 {[%clk 0:02:59.1]} 3. Bf4 {[%clk 0:03:00]} 3... Bd6 {[%clk 0:02:58.4]}
4. e3 {[%clk 0:02:59.5]} 4... Nf6 {[%clk 0:02:52.5]} 5. Bd3 {[%clk 0:02:57.5]}
5... Bxf4 {[%clk 0:02:51.7]} 6. exf4 {[%clk 0:02:57.5]} 6... b6 {[%clk
0:02:52.4]} 7. Nf3 {[%clk 0:02:54.1]} 7... Ba6 {[%clk 0:02:52.1]} 8. Bxa6 {[%clk
0:02:52.5]} 8... Nxa6 {[%clk 0:02:53]} 9. f5 {[%clk 0:02:52.9]} 9... c5 {[%clk
0:02:49.9]} 10. fxe6 {[%clk 0:02:51]} 10... fxe6 {[%clk 0:02:48.8]} 11. O-O
{[%clk 0:02:42]} 11... O-O {[%clk 0:02:48.4]} 12. Qe2 {[%clk 0:02:24.5]} 12...
Nc7 {[%clk 0:02:48.3]} 13. Rae1 {[%clk 0:02:12.6]} 13... cxd4 {[%clk 0:02:32.9]}
14. Nxd4 {[%clk 0:02:12]} 14... Qd6 {[%clk 0:02:33.1]} 15. Ncb5 {[%clk
0:02:04.7]} 15... Nxb5 {[%clk 0:02:25.8]} 16. Nxb5 {[%clk 0:02:04.9]} 16... Qc5
{[%clk 0:02:26.3]} 17. Qxe6+ {[%clk 0:02:02.7]} 17... Kh8 {[%clk 0:02:26.5]} 18.
Nd6 {[%clk 0:01:51.5]} 18... Qc7 {[%clk 0:02:06.8]} 19. c3 {[%clk 0:01:41.3]}
19... Rad8 {[%clk 0:01:43.7]} 20. Nb5 {[%clk 0:01:39.8]} 20... Qc4 {[%clk
0:01:43.8]} 21. Nd6 {[%clk 0:01:16.8]} 21... Qc7 {[%clk 0:01:38.8]} 22. Nb5
{[%clk 0:01:16.9]} 22... Qc4 {[%clk 0:01:38.7]} 23. Nd4 {[%clk 0:01:17.5]} 23...
Qxa2 {[%clk 0:01:36.6]} 24. Qh3 {[%clk 0:01:12.5]} 24... Rde8 {[%clk 0:01:23.9]}
25. Ne6 {[%clk 0:01:09.9]} 25... Rg8 {[%clk 0:01:16]} 26. Ng5 {[%clk 0:01:07.1]}
26... Rgf8 {[%clk 0:01:12.1]} 27. Re6 {[%clk 0:00:57.8]} 27... h6 {[%clk
0:01:08]} 28. Rxe8 {[%clk 0:00:48.5]} 28... Rxe8 {[%clk 0:01:01.3]} 29. Nf7+
{[%clk 0:00:48.9]} 29... Kg8 {[%clk 0:00:59.4]} 30. Nd6 {[%clk 0:00:49.4]} 30...
Re7 {[%clk 0:00:44.6]} 31. Qc8+ {[%clk 0:00:48.9]} 31... Kh7 {[%clk 0:00:41.1]}
32. Qf5+ {[%clk 0:00:48.2]} 32... Kg8 {[%clk 0:00:38]} 33. Qc8+ {[%clk
0:00:42.2]} 33... Kh7 {[%clk 0:00:37.5]} 34. Qf8 {[%clk 0:00:41.8]} 34... Rd7
{[%clk 0:00:14.8]} 35. Ne8 {[%clk 0:00:37.3]} 35... Qxb2 {[%clk 0:00:08.5]} 36.
Nxf6+ {[%clk 0:00:36.4]} 36... gxf6 {[%clk 0:00:08.7]} 37. Qxf6 {[%clk
0:00:36.6]} 37... Rg7 {[%clk 0:00:05.1]} 38. Re1 {[%clk 0:00:34.9]} 38... Qd2
{[%clk 0:00:04.2]} 39. Qf5+ {[%clk 0:00:34.7]} 39... Rg6 {[%clk 0:00:01.9]} 40.
Re7+ {[%clk 0:00:33.1]} 40... Kh8 {[%clk 0:00:02.2]} 41. Qf8+ {[%clk 0:00:31.7]}
1-0

[Event "*** Titled Tuesday Blitz"]
[Site "Chess.com"]
[Date "2020.11.24"]
[Round "4"]
[White "BebeBonito2022"]
[Black "Caisachess"]
[Result "1/2-1/2"]
[WhiteElo "2102"]
[BlackElo "2387"]
[TimeControl "180+1"]
[EndTime "10:55:13 PST"]
[Termination "Game drawn by agreement"]

1. d4 {[%clk 0:03:00.9]} 1... Nf6 {[%clk 0:02:59.4]} 2. c4 {[%clk 0:03:01.1]}
2... e6 {[%clk 0:02:59.2]} 3. Nc3 {[%clk 0:03:00.8]} 3... Bb4 {[%clk 0:02:59.2]}
4. e3 {[%clk 0:03:00.7]} 4... d5 {[%clk 0:02:54.2]} 5. Bd2 {[%clk 0:02:59.3]}
5... O-O {[%clk 0:02:51.8]} 6. Nf3 {[%clk 0:02:58.9]} 6... c5 {[%clk 0:02:50.5]}
7. a3 {[%clk 0:02:57.5]} 7... Bxc3 {[%clk 0:02:48.7]} 8. Bxc3 {[%clk 0:02:58]}
8... Ne4 {[%clk 0:02:49.2]} 9. Rc1 {[%clk 0:02:58.2]} 9... Nxc3 {[%clk
0:02:45.7]} 10. Rxc3 {[%clk 0:02:57.4]} 10... cxd4 {[%clk 0:02:45.6]} 11. Qxd4
{[%clk 0:02:56.2]} 11... Nc6 {[%clk 0:02:44.2]} 12. Qd2 {[%clk 0:02:54.8]} 12...
dxc4 {[%clk 0:02:35.9]} 13. Bxc4 {[%clk 0:02:53.8]} 13... Qxd2+ {[%clk
0:02:31.2]} 14. Kxd2 {[%clk 0:02:53.8]} 14... Rd8+ {[%clk 0:02:24]} 15. Ke2
{[%clk 0:02:45.5]} 15... Bd7 {[%clk 0:02:16.6]} 16. Rd1 {[%clk 0:02:35.9]} 16...
Be8 {[%clk 0:02:15.1]} 17. Rxd8 {[%clk 0:02:34.5]} 17... Rxd8 {[%clk 0:02:14.6]}
18. b4 {[%clk 0:02:35]} 18... Kf8 {[%clk 0:01:44.9]} 19. Rd3 {[%clk 0:02:17.6]}
19... Rxd3 {[%clk 0:01:43.6]} 20. Kxd3 {[%clk 0:02:16.8]} 20... Ke7 {[%clk
0:01:42.4]} 21. g4 {[%clk 0:01:46.5]} 21... f6 {[%clk 0:01:39]} 22. h4 {[%clk
0:01:45.2]} 22... Bg6+ {[%clk 0:01:38.1]} 23. Kc3 {[%clk 0:01:38.6]} 23... Kd6
{[%clk 0:01:37.1]} 24. h5 {[%clk 0:01:28.4]} 24... Be4 {[%clk 0:01:31.9]} 25.
Nd2 {[%clk 0:01:26]} 25... Bd5 {[%clk 0:01:16.8]} 26. f4 {[%clk 0:01:24.6]}
26... e5 {[%clk 0:00:54.6]} 27. Bd3 {[%clk 0:00:50.2]} 27... h6 {[%clk
0:00:51.6]} 28. Ne4+ {[%clk 0:00:49.6]} 28... Bxe4 {[%clk 0:00:41.1]} 29. Bxe4
{[%clk 0:00:49.4]} 29... Nd8 {[%clk 0:00:36.9]} 30. Kc4 {[%clk 0:00:42.8]} 30...
a6 {[%clk 0:00:32.3]} 31. a4 {[%clk 0:00:40.6]} 31... b6 {[%clk 0:00:27.1]} 32.
b5 {[%clk 0:00:20]} 32... a5 {[%clk 0:00:26.3]} 33. Bd5 {[%clk 0:00:18.4]} 33...
Ne6 {[%clk 0:00:21.7]} 34. Bxe6 {[%clk 0:00:17.4]} 34... Kxe6 {[%clk 0:00:22.4]}
35. f5+ {[%clk 0:00:15.6]} 35... Kd6 {[%clk 0:00:21]} 36. e4 {[%clk 0:00:15.6]}
36... Ke7 {[%clk 0:00:20.6]} 37. Kd5 {[%clk 0:00:14.1]} 37... Kd7 {[%clk
0:00:19.6]} 1/2-1/2

[Event "*** Titled Tuesday Blitz"]
[Site "Chess.com"]
[Date "2020.11.24"]
[Round "4"]
[White "crazy_but_lazy"]
[Black "HajduIstvanCM"]
[Result "1-0"]
[WhiteElo "2445"]
[BlackElo "1704"]
[TimeControl "180+1"]
[EndTime "10:55:14 PST"]
[Termination "crazy_but_lazy won on time"]

1. Nf3 {[%clk 0:03:00.9]} 1... d5 {[%clk 0:02:57.4]} 2. c4 {[%clk 0:02:59.1]}
2... c6 {[%clk 0:02:57.1]} 3. b3 {[%clk 0:02:57.2]} 3... Bf5 {[%clk 0:02:55.8]}
4. g3 {[%clk 0:02:56.8]} 4... Nf6 {[%clk 0:02:54.6]} 5. Bg2 {[%clk 0:02:57]}
5... e6 {[%clk 0:02:53.9]} 6. O-O {[%clk 0:02:57.1]} 6... h6 {[%clk 0:02:53.5]}
7. Bb2 {[%clk 0:02:57.1]} 7... Be7 {[%clk 0:02:52.9]} 8. d3 {[%clk 0:02:56.1]}
8... Nbd7 {[%clk 0:02:51.1]} 9. Nbd2 {[%clk 0:02:55.8]} 9... Bh7 {[%clk
0:02:45.5]} 10. Rc1 {[%clk 0:02:53.2]} 10... O-O {[%clk 0:02:44.1]} 11. Rc2
{[%clk 0:02:48.2]} 11... Rc8 {[%clk 0:02:38.3]} 12. Qa1 {[%clk 0:02:46.2]} 12...
Nc5 {[%clk 0:02:30.7]} 13. Ne5 {[%clk 0:02:44.4]} 13... Ncd7 {[%clk 0:02:21.9]}
14. Ndf3 {[%clk 0:02:43.5]} 14... Nxe5 {[%clk 0:02:08]} 15. Nxe5 {[%clk
0:02:44.4]} 15... Ne8 {[%clk 0:01:40.2]} 16. a3 {[%clk 0:02:38.9]} 16... f6
{[%clk 0:01:39.3]} 17. Nf3 {[%clk 0:02:38.2]} 17... Nd6 {[%clk 0:01:29]} 18. Nd4
{[%clk 0:02:20.2]} 18... Qd7 {[%clk 0:01:16]} 19. Bh3 {[%clk 0:02:19.2]} 19...
f5 {[%clk 0:01:13.5]} 20. Nf3 {[%clk 0:02:17.2]} 20... Bf6 {[%clk 0:01:07.8]}
21. Ne5 {[%clk 0:02:15.8]} 21... Qe8 {[%clk 0:01:02.5]} 22. c5 {[%clk
0:02:13.5]} 22... Nf7 {[%clk 0:00:59]} 23. Nxf7 {[%clk 0:02:09]} 23... Qxf7
{[%clk 0:00:57.8]} 24. Be5 {[%clk 0:02:09.5]} 24... Bxe5 {[%clk 0:00:52.7]} 25.
Qxe5 {[%clk 0:02:09.2]} 25... Qf6 {[%clk 0:00:49.4]} 26. Qxf6 {[%clk 0:02:07.3]}
26... Rxf6 {[%clk 0:00:48]} 27. d4 {[%clk 0:02:07.7]} 27... g5 {[%clk
0:00:46.2]} 28. f4 {[%clk 0:02:08]} 28... g4 {[%clk 0:00:44.5]} 29. Bg2 {[%clk
0:02:07.9]} 29... Bg6 {[%clk 0:00:43]} 30. b4 {[%clk 0:02:05.4]} 30... a6 {[%clk
0:00:38.9]} 31. Kf2 {[%clk 0:02:05.1]} 31... Be8 {[%clk 0:00:38.1]} 32. Rb1
{[%clk 0:02:05]} 32... Rf7 {[%clk 0:00:35.2]} 33. Rc3 {[%clk 0:02:03.2]} 33...
h5 {[%clk 0:00:33.4]} 34. Bf1 {[%clk 0:01:59]} 34... Rfc7 {[%clk 0:00:30.4]} 35.
a4 {[%clk 0:01:56.7]} 35... Kf7 {[%clk 0:00:27.8]} 36. e3 {[%clk 0:01:57.2]}
36... Kf6 {[%clk 0:00:26.9]} 37. Rcb3 {[%clk 0:01:57.1]} 37... Bd7 {[%clk
0:00:24.6]} 38. b5 {[%clk 0:01:56.5]} 38... cxb5 {[%clk 0:00:24]} 39. axb5
{[%clk 0:01:57.4]} 39... axb5 {[%clk 0:00:23.8]} 40. Bxb5 {[%clk 0:01:58.3]}
40... Bc6 {[%clk 0:00:21.2]} 41. Ra1 {[%clk 0:01:49.3]} 41... Ke7 {[%clk
0:00:18.3]} 42. Ke2 {[%clk 0:01:48.4]} 42... Kd7 {[%clk 0:00:17]} 43. Kd3 {[%clk
0:01:48.6]} 43... Ke7 {[%clk 0:00:16.7]} 44. Kc3 {[%clk 0:01:48.5]} 44... Kd7
{[%clk 0:00:16.8]} 45. Kb4 {[%clk 0:01:45.9]} 45... Ke7 {[%clk 0:00:16.1]} 46.
Ra7 {[%clk 0:01:46.3]} 46... Kd7 {[%clk 0:00:14.7]} 47. Ka5 {[%clk 0:01:45.9]}
47... Ke7 {[%clk 0:00:12.9]} 48. Kb6 {[%clk 0:01:46.2]} 48... Kd7 {[%clk
0:00:11.8]} 49. Rba3 {[%clk 0:01:43]} 49... Kd8 {[%clk 0:00:11.2]} 50. Ra8
{[%clk 0:01:16.1]} 50... Bxb5 {[%clk 0:00:08.5]} 51. Kxb5 {[%clk 0:01:13.8]}
51... Kd7 {[%clk 0:00:07.1]} 52. R3a7 {[%clk 0:01:08.9]} 52... Kd8 {[%clk
0:00:03.9]} 53. Rxc8+ {[%clk 0:01:05.4]} 53... Kxc8 {[%clk 0:00:02.4]} 54. Ra8+
{[%clk 0:01:05.5]} 54... Kd7 {[%clk 0:00:02.2]} 55. Rh8 {[%clk 0:01:05.2]} 1-0

[Event "*** Titled Tuesday Blitz"]
[Site "Chess.com"]
[Date "2020.11.24"]
[Round "4"]
[White "louis198"]
[Black "Michaelson_11"]
[Result "1-0"]
[WhiteElo "2538"]
[BlackElo "2145"]
[TimeControl "180+1"]
[EndTime "10:55:15 PST"]
[Termination "louis198 won on time"]

1. d4 {[%clk 0:02:30.9]} 1... Nf6 {[%clk 0:02:57.5]} 2. c4 {[%clk 0:02:29.9]}
2... g6 {[%clk 0:02:56.7]} 3. Nc3 {[%clk 0:02:29.7]} 3... Bg7 {[%clk 0:02:57.2]}
4. e4 {[%clk 0:02:30.3]} 4... O-O {[%clk 0:02:53.7]} 5. Nf3 {[%clk 0:02:30.9]}
5... d6 {[%clk 0:02:53.7]} 6. Be2 {[%clk 0:02:31.4]} 6... e5 {[%clk 0:02:53.9]}
7. O-O {[%clk 0:02:32]} 7... exd4 {[%clk 0:02:53.6]} 8. Nxd4 {[%clk 0:02:31.9]}
8... Re8 {[%clk 0:02:54.2]} 9. f3 {[%clk 0:02:31.3]} 9... c6 {[%clk 0:02:54.7]}
10. Nc2 {[%clk 0:02:27.2]} 10... Na6 {[%clk 0:02:51.5]} 11. Bf4 {[%clk
0:02:26.1]} 11... Qb6+ {[%clk 0:02:40.9]} 12. Kh1 {[%clk 0:02:25.8]} 12... Nh5
{[%clk 0:02:19]} 13. Na4 {[%clk 0:02:03]} 13... Qa5 {[%clk 0:02:11.8]} 14. Bd2
{[%clk 0:02:01.8]} 14... Qc7 {[%clk 0:01:51.4]} 15. Rc1 {[%clk 0:01:58.5]} 15...
Be6 {[%clk 0:01:33.8]} 16. Bc3 {[%clk 0:01:48.5]} 16... Rad8 {[%clk 0:01:27.9]}
17. Bxg7 {[%clk 0:01:42.3]} 17... Nxg7 {[%clk 0:01:24.6]} 18. Nd4 {[%clk
0:01:42.4]} 18... Nc5 {[%clk 0:01:09.7]} 19. b4 {[%clk 0:01:34.6]} 19... Nxa4
{[%clk 0:01:01.3]} 20. Qxa4 {[%clk 0:01:35.5]} 20... Qb6 {[%clk 0:00:57.5]} 21.
Rfd1 {[%clk 0:01:24.3]} 21... d5 {[%clk 0:00:29.9]} 22. cxd5 {[%clk 0:01:15.3]}
22... cxd5 {[%clk 0:00:29.5]} 23. Bb5 {[%clk 0:00:41.6]} 23... Re7 {[%clk
0:00:22.8]} 24. Nxe6 {[%clk 0:00:37.4]} 24... fxe6 {[%clk 0:00:20.7]} 25. exd5
{[%clk 0:00:34.2]} 25... exd5 {[%clk 0:00:21.6]} 26. Bf1 {[%clk 0:00:29.9]}
26... d4 {[%clk 0:00:17.3]} 27. Rc5 {[%clk 0:00:25.2]} 27... Red7 {[%clk
0:00:16.3]} 28. Qb3+ {[%clk 0:00:24.1]} 28... Kh8 {[%clk 0:00:15.8]} 29. a4
{[%clk 0:00:22.9]} 29... a6 {[%clk 0:00:12.4]} 30. a5 {[%clk 0:00:21.4]} 30...
Qd6 {[%clk 0:00:11.5]} 31. Bd3 {[%clk 0:00:17]} 31... Ne6 {[%clk 0:00:10.5]} 32.
Rc4 {[%clk 0:00:17.1]} 32... Nf4 {[%clk 0:00:09.6]} 33. Be4 {[%clk 0:00:17.5]}
33... d3 {[%clk 0:00:07.3]} 34. g3 {[%clk 0:00:17.9]} 34... Ne6 {[%clk
0:00:04.8]} 35. Rxd3 {[%clk 0:00:18.1]} 1-0

[Event "*** Titled Tuesday Blitz"]
[Site "Chess.com"]
[Date "2020.11.24"]
[Round "4"]
[White "MarkoPe"]
[Black "Chessalary"]
[Result "0-1"]
[WhiteElo "2200"]
[BlackElo "2430"]
[TimeControl "180+1"]
[EndTime "10:55:15 PST"]
[Termination "Chessalary won on time"]

1. e4 {[%clk 0:03:00.8]} 1... c5 {[%clk 0:02:59.8]} 2. Nf3 {[%clk 0:03:00.4]}
2... d6 {[%clk 0:03:00.2]} 3. d4 {[%clk 0:02:56.5]} 3... cxd4 {[%clk 0:03:00.5]}
4. Nxd4 {[%clk 0:02:56]} 4... Nf6 {[%clk 0:03:00.6]} 5. Nc3 {[%clk 0:02:56.2]}
5... a6 {[%clk 0:03:01.2]} 6. f3 {[%clk 0:02:53.5]} 6... e5 {[%clk 0:03:01.1]}
7. Nb3 {[%clk 0:02:53.2]} 7... Be6 {[%clk 0:03:01.7]} 8. Be3 {[%clk 0:02:53.9]}
8... Be7 {[%clk 0:03:02.1]} 9. Qd2 {[%clk 0:02:54.6]} 9... O-O {[%clk
0:03:02.5]} 10. O-O-O {[%clk 0:02:54.1]} 10... Nbd7 {[%clk 0:03:02.9]} 11. g4
{[%clk 0:02:52.9]} 11... b5 {[%clk 0:03:03.1]} 12. g5 {[%clk 0:02:53.4]} 12...
Ne8 {[%clk 0:03:01.2]} 13. h4 {[%clk 0:02:42.9]} 13... Nb6 {[%clk 0:02:54.1]}
14. f4 {[%clk 0:02:13.2]} 14... exf4 {[%clk 0:02:49.7]} 15. Bxf4 {[%clk
0:02:14.1]} 15... b4 {[%clk 0:02:47.3]} 16. Nd5 {[%clk 0:02:11.6]} 16... Bxd5
{[%clk 0:02:45.1]} 17. exd5 {[%clk 0:02:12.5]} 17... a5 {[%clk 0:02:45.5]} 18.
Nd4 {[%clk 0:02:00.3]} 18... Qd7 {[%clk 0:02:36.7]} 19. Bh3 {[%clk 0:01:34.5]}
19... Qc7 {[%clk 0:02:33.3]} 20. Rhe1 {[%clk 0:01:28.1]} 20... a4 {[%clk
0:01:38]} 21. Nc6 {[%clk 0:01:03.4]} 21... Bd8 {[%clk 0:01:33.9]} 22. Kb1 {[%clk
0:00:36.5]} 22... b3 {[%clk 0:01:32.2]} 23. cxb3 {[%clk 0:00:35.3]} 23... axb3
{[%clk 0:01:33.1]} 24. a3 {[%clk 0:00:36]} 24... g6 {[%clk 0:01:17.7]} 25. Rc1
{[%clk 0:00:35.5]} 25... Qb7 {[%clk 0:01:11.4]} 26. h5 {[%clk 0:00:26.5]} 26...
Ng7 {[%clk 0:00:51.9]} 27. h6 {[%clk 0:00:25.3]} 27... Nh5 {[%clk 0:00:46.9]}
28. Bxd6 {[%clk 0:00:25.1]} 28... Bc7 {[%clk 0:00:30.8]} 29. Re7 {[%clk
0:00:12.9]} 29... Rac8 {[%clk 0:00:21.8]} 30. Ne5 {[%clk 0:00:05.5]} 30... Qxd5
{[%clk 0:00:19.6]} 31. Qxd5 {[%clk 0:00:02.5]} 31... Nxd5 {[%clk 0:00:20.5]} 32.
Rexc7 {[%clk 0:00:01.6]} 32... Nxc7 {[%clk 0:00:20.9]} 0-1

[Event "*** Titled Tuesday Blitz"]
[Site "Chess.com"]
[Date "2020.11.24"]
[Round "4"]
[White "skoularikii"]
[Black "Ermito2020"]
[Result "1/2-1/2"]
[WhiteElo "2480"]
[BlackElo "2631"]
[TimeControl "180+1"]
[EndTime "10:55:16 PST"]
[Termination "Game drawn by repetition"]

1. e4 {[%clk 0:03:00.9]} 1... c5 {[%clk 0:03:00.5]} 2. Nf3 {[%clk 0:03:00.8]}
2... d6 {[%clk 0:03:01]} 3. Bb5+ {[%clk 0:03:00.7]} 3... Nd7 {[%clk 0:02:59.6]}
4. c3 {[%clk 0:02:59.9]} 4... a6 {[%clk 0:02:55.8]} 5. Ba4 {[%clk 0:02:58.8]}
5... b5 {[%clk 0:02:50.6]} 6. Bc2 {[%clk 0:02:58.7]} 6... Ngf6 {[%clk
0:02:49.1]} 7. O-O {[%clk 0:02:58.6]} 7... e5 {[%clk 0:02:48.7]} 8. d4 {[%clk
0:02:58.7]} 8... Be7 {[%clk 0:02:49.1]} 9. a4 {[%clk 0:02:57.8]} 9... Bb7 {[%clk
0:02:46]} 10. Qe2 {[%clk 0:02:52.3]} 10... O-O {[%clk 0:02:39.3]} 11. d5 {[%clk
0:02:52.7]} 11... c4 {[%clk 0:02:38]} 12. Na3 {[%clk 0:02:52.6]} 12... Nc5
{[%clk 0:02:35.6]} 13. Bd2 {[%clk 0:02:28.2]} 13... Qb6 {[%clk 0:01:54.2]} 14.
Be3 {[%clk 0:02:24.8]} 14... Bc8 {[%clk 0:01:46]} 15. h3 {[%clk 0:02:19.9]}
15... Bd7 {[%clk 0:01:45.9]} 16. Nd2 {[%clk 0:02:17.1]} 16... Qc7 {[%clk
0:01:43.5]} 17. a5 {[%clk 0:02:08.5]} 17... Rfe8 {[%clk 0:01:31.9]} 18. g4
{[%clk 0:01:48.5]} 18... Rec8 {[%clk 0:01:25.4]} 19. Kg2 {[%clk 0:01:43]} 19...
h6 {[%clk 0:01:20.9]} 20. f4 {[%clk 0:01:35.1]} 20... exf4 {[%clk 0:01:17.7]}
21. Rxf4 {[%clk 0:01:32.9]} 21... Nh7 {[%clk 0:01:15.7]} 22. Raf1 {[%clk
0:01:30.8]} 22... Be8 {[%clk 0:01:06.5]} 23. Nf3 {[%clk 0:01:03.8]} 23... Nd7
{[%clk 0:00:58.6]} 24. Bd4 {[%clk 0:01:00.5]} 24... Bf6 {[%clk 0:00:53.9]} 25.
e5 {[%clk 0:00:45.6]} 25... dxe5 {[%clk 0:00:51.6]} 26. Qe4 {[%clk 0:00:45.2]}
26... g6 {[%clk 0:00:32.1]} 27. Nxe5 {[%clk 0:00:44.7]} 27... Bxe5 {[%clk
0:00:30.4]} 28. Rxf7 {[%clk 0:00:44.6]} 28... Bxf7 {[%clk 0:00:22.2]} 29. Rxf7
{[%clk 0:00:44]} 29... Nhf8 {[%clk 0:00:12.3]} 30. Re7 {[%clk 0:00:34.4]} 30...
Nc5 {[%clk 0:00:08.6]} 31. Qxe5 {[%clk 0:00:17.8]} 31... Qxe5 {[%clk 0:00:08.6]}
32. Bxe5 {[%clk 0:00:18.7]} 32... Re8 {[%clk 0:00:03.4]} 33. Rg7+ {[%clk
0:00:18.5]} 33... Kh8 {[%clk 0:00:03.5]} 34. Re7+ {[%clk 0:00:13]} 34... Kg8
{[%clk 0:00:03.8]} 35. Rg7+ {[%clk 0:00:10.5]} 35... Kh8 {[%clk 0:00:04.1]} 36.
Re7+ {[%clk 0:00:10.7]} 36... Kg8 {[%clk 0:00:04.3]} 1/2-1/2

[Event "*** Titled Tuesday Blitz"]
[Site "Chess.com"]
[Date "2020.11.24"]
[Round "4"]
[White "Gudmundur_Kjartansson"]
[Black "ARTHURMOTIVATOR"]
[Result "1-0"]
[WhiteElo "2558"]
[BlackElo "2294"]
[TimeControl "180+1"]
[EndTime "10:55:16 PST"]
[Termination "Gudmundur_Kjartansson won on time"]

1. d4 {[%clk 0:03:00.9]} 1... Nf6 {[%clk 0:02:58.9]} 2. c4 {[%clk 0:03:01.4]}
2... c5 {[%clk 0:02:57.8]} 3. d5 {[%clk 0:03:00.5]} 3... g6 {[%clk 0:02:57.2]}
4. Nc3 {[%clk 0:02:59.8]} 4... Bg7 {[%clk 0:02:55.7]} 5. e4 {[%clk 0:02:59.7]}
5... d6 {[%clk 0:02:55.8]} 6. Bd3 {[%clk 0:02:55.7]} 6... O-O {[%clk 0:02:53.8]}
7. Nge2 {[%clk 0:02:55]} 7... e5 {[%clk 0:02:41.3]} 8. f3 {[%clk 0:02:40.6]}
8... Nbd7 {[%clk 0:02:35.3]} 9. Bg5 {[%clk 0:02:36.8]} 9... h6 {[%clk
0:02:24.7]} 10. Be3 {[%clk 0:02:36.9]} 10... Nh5 {[%clk 0:02:12.5]} 11. g4
{[%clk 0:02:14.8]} 11... Nf4 {[%clk 0:02:10.6]} 12. Nxf4 {[%clk 0:02:14.1]}
12... exf4 {[%clk 0:02:11.5]} 13. Bxf4 {[%clk 0:02:14.3]} 13... Ne5 {[%clk
0:02:08]} 14. Be2 {[%clk 0:02:13.6]} 14... Qf6 {[%clk 0:01:56.3]} 15. Qd2 {[%clk
0:02:06.5]} 15... g5 {[%clk 0:01:52.7]} 16. Bxe5 {[%clk 0:01:51.9]} 16... Qxe5
{[%clk 0:01:52]} 17. O-O-O {[%clk 0:01:51.1]} 17... a6 {[%clk 0:01:50.4]} 18. h4
{[%clk 0:01:49.3]} 18... b5 {[%clk 0:01:43.4]} 19. hxg5 {[%clk 0:01:47.7]} 19...
hxg5 {[%clk 0:01:41.6]} 20. cxb5 {[%clk 0:01:46.8]} 20... axb5 {[%clk
0:01:34.1]} 21. Bxb5 {[%clk 0:01:47.2]} 21... Ba6 {[%clk 0:01:29.1]} 22. Bxa6
{[%clk 0:01:38.3]} 22... Rxa6 {[%clk 0:01:27.6]} 23. Qh2 {[%clk 0:01:36.8]}
23... Rb8 {[%clk 0:01:03.5]} 24. Qxe5 {[%clk 0:01:34]} 24... Bxe5 {[%clk
0:01:03.5]} 25. Kc2 {[%clk 0:01:25.3]} 25... Rxa2 {[%clk 0:00:32.5]} 26. Rb1
{[%clk 0:01:02.3]} 26... Ra6 {[%clk 0:00:28.6]} 27. Rh5 {[%clk 0:00:59.7]} 27...
Bf6 {[%clk 0:00:23.6]} 28. e5 {[%clk 0:00:52.3]} 28... dxe5 {[%clk 0:00:17]} 29.
Ne4 {[%clk 0:00:49.4]} 29... Bd8 {[%clk 0:00:12.4]} 30. Nxc5 {[%clk 0:00:30.4]}
30... Rab6 {[%clk 0:00:03.7]} 31. Ne4 {[%clk 0:00:19.9]} 31... Rc8+ {[%clk
0:00:03.5]} 32. Nc3 {[%clk 0:00:18.7]} 32... Be7 {[%clk 0:00:02.5]} 33. Rbh1
{[%clk 0:00:17.2]} 33... Bf6 {[%clk 0:00:02.5]} 34. Rh6 {[%clk 0:00:16]} 34...
Kf8 {[%clk 0:00:01.5]} 35. Rxf6 {[%clk 0:00:14.5]} 1-0

[Event "*** Titled Tuesday Blitz"]
[Site "Chess.com"]
[Date "2020.11.24"]
[Round "4"]
[White "Piotrek1979"]
[Black "GoltsevDmitry2000"]
[Result "1/2-1/2"]
[WhiteElo "2501"]
[BlackElo "2671"]
[TimeControl "180+1"]
[EndTime "10:55:17 PST"]
[Termination "Game drawn by repetition"]

1. e4 {[%clk 0:03:00.9]} 1... c5 {[%clk 0:02:50.6]} 2. Nf3 {[%clk 0:02:59.1]}
2... e6 {[%clk 0:02:51.2]} 3. c3 {[%clk 0:02:57.3]} 3... Nc6 {[%clk 0:02:51]} 4.
d4 {[%clk 0:02:56.6]} 4... cxd4 {[%clk 0:02:51.9]} 5. cxd4 {[%clk 0:02:56.3]}
5... d5 {[%clk 0:02:52]} 6. exd5 {[%clk 0:02:55.8]} 6... exd5 {[%clk 0:02:52.1]}
7. Bb5 {[%clk 0:02:50]} 7... Bd7 {[%clk 0:02:51.1]} 8. O-O {[%clk 0:02:49]} 8...
Nf6 {[%clk 0:02:50.9]} 9. Re1+ {[%clk 0:02:48.4]} 9... Be7 {[%clk 0:02:51.1]}
10. Qe2 {[%clk 0:02:36.3]} 10... Ne4 {[%clk 0:02:50.4]} 11. Nc3 {[%clk
0:02:32.9]} 11... Bf5 {[%clk 0:02:44.4]} 12. Ne5 {[%clk 0:02:24.3]} 12... Rc8
{[%clk 0:02:33.8]} 13. f3 {[%clk 0:02:16.2]} 13... Nxc3 {[%clk 0:02:25.4]} 14.
bxc3 {[%clk 0:02:17.1]} 14... O-O {[%clk 0:02:24.7]} 15. Bxc6 {[%clk 0:01:55.2]}
15... bxc6 {[%clk 0:02:25.6]} 16. Nxc6 {[%clk 0:01:55]} 16... Rxc6 {[%clk
0:02:25.7]} 17. Qxe7 {[%clk 0:01:55.6]} 17... Qxe7 {[%clk 0:02:12.2]} 18. Rxe7
{[%clk 0:01:56.5]} 18... Rxc3 {[%clk 0:02:13.1]} 19. Rxa7 {[%clk 0:01:46.2]}
19... Re8 {[%clk 0:02:12.8]} 20. Bd2 {[%clk 0:01:34]} 20... Rc2 {[%clk
0:02:11.7]} 21. Re1 {[%clk 0:01:33]} 21... Rb8 {[%clk 0:02:03.2]} 22. Bf4 {[%clk
0:01:28.9]} 22... Rbc8 {[%clk 0:01:56.1]} 23. Ree7 {[%clk 0:01:01.9]} 23... g5
{[%clk 0:01:14.9]} 24. Be5 {[%clk 0:00:45.2]} 24... Be6 {[%clk 0:00:32.2]} 25.
h3 {[%clk 0:00:43.6]} 25... h5 {[%clk 0:00:28.3]} 26. a4 {[%clk 0:00:36.9]}
26... Bxh3 {[%clk 0:00:06.6]} 27. gxh3 {[%clk 0:00:12.6]} 27... Rc1+ {[%clk
0:00:07]} 28. Kf2 {[%clk 0:00:13]} 28... R8c2+ {[%clk 0:00:04.1]} 29. Ke3 {[%clk
0:00:13.2]} 29... Rc3+ {[%clk 0:00:04.1]} 30. Kd2 {[%clk 0:00:13.1]} 30... R1c2+
{[%clk 0:00:04.5]} 31. Kd1 {[%clk 0:00:13.5]} 31... Rc1+ {[%clk 0:00:04.9]} 32.
Kd2 {[%clk 0:00:13.9]} 32... R1c2+ {[%clk 0:00:04.7]} 33. Kd1 {[%clk 0:00:14.2]}
33... Rc1+ {[%clk 0:00:02.5]} 34. Kd2 {[%clk 0:00:14.4]} 1/2-1/2